[Event "FIDE WYCC Girls U14 2023"]
[Site "Montesilvano"]
[Date "2023.11.14"]
[Round "2.13"]
[White "Sosovickova, Martina"]
[Black "Wojs, Alicja"]
[Result "1/2-1/2"]
[ECO "D45"]
[WhiteElo "1877"]
[BlackElo "1630"]
[Annotator "NA"]
[PlyCount "69"]
[EventDate "2023.11.13"]
[EventType "swiss"]
[EventCountry "ITA"]
[SourceTitle "playchess.com"]
[Source "ChessBase"]
[SourceQuality "1"]
[TimeControl "40/5400+30:1800+30"]

1. d4 {[%emt 0:00:06]} Nf6 {[%emt 0:00:10]} 2. Nf3 {[%emt 0:00:14]} d5 {[%emt 0:00:07]} 3. c4 {[%emt 0:00:15]} c6 {[%emt 0:00:13]} 4. Nc3 {[%emt 0:00:17]} e6 {[%emt 0:00:10]} 5. e3 {[%emt 0:00:22]} Bd6 {[%emt 0:00:51]} 6. Qc2 Nbd7 {[%emt 0:01:11]} 7. b3 {[%emt 0:02:04]} O-O {[%emt 0:00:20]} 8. Be2 {[%emt 0:00:19]} e5 {[%emt 0:04:52]} 9. O-O {[%emt 0:06:42]} Re8 {[%emt 0:02:47]} 10. cxd5 {[%emt 0:04:55]} cxd5 {[%emt 0:07:02]} 11. Nb5 {[%emt 0:02:16]} Bb8 {[%emt 0:00:06]} 12. dxe5 {[%emt 0:01:36]} Nxe5 {[%emt 0:00:59]} 13. Bb2 {[%emt 0:00:58]} Nxf3+ {[%emt 0:03:50]} 14. Bxf3 {[%emt 0:00:32]} a6 {[%emt 0:01:55]} 15. Bxf6 {[%emt 0:11:36]} Qxf6 {[%emt 0:00:07]} 16. Nc7 {[%emt 0:00:42]} Qd6 {[%emt 0:00:18]} 17. Rfc1 {[%emt 0:01:44]} Bxc7 {[%emt 0:05:45]} 18. Qxc7 {[%emt 0:00:13]} Qe5 {[%emt 0:05:38]} 19. Qxe5 {[%emt 0:03:34]} Rxe5 {[%emt 0:01:04]} 20. Rc5 {[%emt 0:04:52]} Be6 {[%emt 0:02:48]} 21. Rd1 {[%emt 0:01:54]} Kf8 {[%emt 0:00:38]} 22. Rc2 {[%emt 0:06:23]} b6 {[%emt 0:05:18]} 23. Rcd2 {[%emt 0:01:02]} Ke7 {[%emt 0:02:05]} 24. Kf1 {[%emt 0:06:59]} Rc8 {[%emt 0:03:21]} 25. Ke1 {[%emt 0:05:26]} Rc5 {[%emt 0:05:26]} 26. b4 {[%emt 0:06:34]} Rc4 {[%emt 0:00:33]} 27. Rd4 {[%emt 0:00:47]} f5 {[%emt 0:06:31]} 28. Be2 {[%emt 0:04:01]} Rxd4 {[%emt 0:03:46]} 29. Rxd4 {[%emt 0:03:54]} b5 {[%emt 0:05:58]} 30. Bd3 {[%emt 0:06:21]} Bf7 {[%emt 0:06:50]} 31. Kd2 {[%emt 0:05:05]} Kf6 {[%emt 0:02:18]} 32. Bc2 {[%emt 0:03:13]} Re7 {[%emt 0:02:25]} 33. Bb3 {[%emt 0:01:55]} Ke5 {[%emt 0:01:32]} 34. f4+ {[%emt 0:02:53]} Kd6 {[%emt 0:00:06]} 35. Bc2 {[%emt 0:01:13]} 1/2-1/2

[Event "FIDE WYCC Girls U14 2023"]
[Site "Montesilvano"]
[Date "2023.11.14"]
[Round "2.14"]
[White "Mkrtchyan, Anahit H."]
[Black "Maklakova, Naomi"]
[Result "0-1"]
[ECO "C79"]
[WhiteElo "1630"]
[BlackElo "1873"]
[Annotator "NA"]
[PlyCount "102"]
[EventDate "2023.11.13"]
[EventType "swiss"]
[EventCountry "ITA"]
[SourceTitle "playchess.com"]
[Source "ChessBase"]
[SourceQuality "1"]
[TimeControl "40/5400+30:1800+30"]

1. e4 {[%emt 0:00:03]} e5 {[%emt 0:00:26]} 2. Nf3 {[%emt 0:00:04]} Nc6 {[%emt 0:00:12]} 3. Bb5 {[%emt 0:00:10]} a6 {[%emt 0:00:21]} 4. Ba4 {[%emt 0:00:03]} d6 {[%emt 0:00:09]} 5. O-O {[%emt 0:00:11]} Nf6 6. c3 {[%emt 0:01:52]} Nxe4 {[%emt 0:12:41]} 7. d4 {[%emt 0:02:03]} b5 {[%emt 0:12:44]} 8. Bb3 {[%emt 0:12:51]} Bb7 {[%emt 0:09:51]} 9. Re1 {[%emt 0:06:12]} f5 {[%emt 0:23:40]} 10. Nbd2 {[%emt 0:06:24]} Be7 {[%emt 0:04:09]} 11. Be6 {[%emt 0:20:03]} Nxd2 {[%emt 0:02:52]} 12. Bxd2 {[%emt 0:06:05]} e4 {[%emt 0:03:31]} 13. d5 {[%emt 0:00:07]} exf3 {[%emt 0:00:18]} 14. dxc6 {[%emt 0:00:19]} Bxc6 {[%emt 0:00:09]} 15. Qb3 {[%emt 0:15:38]} Kf8 {[%emt 0:18:13]} 16. Bxf5 {[%emt 0:12:49]} Bg5 {[%emt 0:02:06]} 17. Qc2 {[%emt 0:02:24]} g6 {[%emt 0:03:28]} 18. Be6 {[%emt 0:00:54]} fxg2 {[%emt 0:01:07]} 19. f4 {[%emt 0:01:52]} Bh4 {[%emt 0:00:28]} 20. f5 {[%emt 0:00:53]} Kg7 {[%emt 0:01:23]} 21. Be3 {[%emt 0:01:41]} Re8 {[%emt 0:01:11]} 22. Qd2 {[%emt 0:00:46]} Bf6 {[%emt 0:01:45]} 23. Bh6+ {[%emt 0:01:07]} Kh8 {[%emt 0:00:01]} 24. fxg6 {[%emt 0:00:39]} hxg6 {[%emt 0:00:08]} 25. Qd3 {[%emt 0:00:54]} Kh7 {[%emt 0:00:30]} 26. Bf7 {[%emt 0:01:02]} Rg8 {[%emt 0:00:41]} 27. Bxg8+ {[%emt 0:00:47]} Qxg8 {[%emt 0:00:01]} 28. Qh3 {[%emt 0:00:09]} Qf7 {[%emt 0:00:26]} 29. Bg5+ {[%emt 0:01:46]} Kg7 {[%emt 0:00:37]} 30. Bxf6+ {[%emt 0:01:25]} Qxf6 {[%emt 0:00:05]} 31. Re6 {[%emt 0:01:01]} Qg5 {[%emt 0:01:30]} 32. Rae1 {[%emt 0:01:04]} Qc5+ {[%emt 0:00:16]} 33. Qe3 {[%emt 0:00:27]} Qxe3+ {[%emt 0:00:13]} 34. R6xe3 {[%emt 0:00:05]} Rf8 {[%emt 0:00:15]} 35. Re7+ {[%emt 0:00:13]} Rf7 {[%emt 0:00:01]} 36. Rxf7+ {[%emt 0:01:17]} Kxf7 {[%emt 0:00:01]} 37. b4 {[%emt 0:00:35]} Bd5 {[%emt 0:00:32]} 38. Rd1 {[%emt 0:00:51]} Ke6 {[%emt 0:00:53]} 39. Rd4 {[%emt 0:00:10]} c5 {[%emt 0:00:48]} 40. Rh4 {[%emt 0:00:00]} cxb4 {[%emt 0:00:00]} 41. cxb4 {[%emt 0:00:24]} Bf3 {[%emt 0:07:50]} 42. Kf2 {[%emt 0:00:23]} d5 {[%emt 0:00:50]} 43. Rh8 {[%emt 0:00:33]} d4 {[%emt 0:01:14]} 44. Re8+ {[%emt 0:19:53]} Kd5 {[%emt 0:01:30]} 45. Re1 {[%emt 0:00:09]} Be4 {[%emt 0:00:26]} 46. a3 {[%emt 0:01:23]} g5 {[%emt 0:04:48]} 47. Rc1 {[%emt 0:00:58]} Ke5 {[%emt 0:01:45]} 48. h3 {[%emt 0:09:19]} Kf4 {[%emt 0:02:42]} 49. Rc8 {[%emt 0:00:22]} d3 {[%emt 0:03:35]} 50. Rg8 {[%emt 0:02:50]} Bd5 {[%emt 0:01:19]} 51. Rf8+ {[%emt 0:00:47]} Ke5 {[%emt 0:00:41]} 0-1

[Event "FIDE WYCC Girls U14 2023"]
[Site "Montesilvano"]
[Date "2023.11.14"]
[Round "2.15"]
[White "Negre, Emilie"]
[Black "Khulan, Bayarsaikhan"]
[Result "0-1"]
[ECO "A56"]
[WhiteElo "1871"]
[BlackElo "1615"]
[Annotator "NA"]
[PlyCount "102"]
[EventDate "2023.11.13"]
[EventType "swiss"]
[EventCountry "ITA"]
[SourceTitle "playchess.com"]
[Source "ChessBase"]
[SourceQuality "1"]
[TimeControl "40/5400+30:1800+30"]

1. d4 {[%emt 0:00:01]} Nf6 {[%emt 0:00:03]} 2. c4 {[%emt 0:00:06]} c5 {[%emt 0:00:03]} 3. Nf3 {[%emt 0:00:19]} g6 {[%emt 0:00:10]} 4. Nc3 cxd4 5. Nxd4 {[%emt 0:00:29]} Nc6 {[%emt 0:04:33]} 6. e4 {[%emt 0:00:17]} d6 {[%emt 0:02:32]} 7. Be2 {[%emt 0:00:34]} Bg7 {[%emt 0:00:49]} 8. Be3 {[%emt 0:00:10]} Bd7 {[%emt 0:02:26]} 9. f3 {[%emt 0:01:50]} O-O {[%emt 0:02:31]} 10. O-O {[%emt 0:00:06]} Qb6 {[%emt 0:02:03]} 11. Kh1 {[%emt 0:01:46]} Rfe8 {[%emt 0:16:16]} 12. Nf5 {[%emt 0:36:52]} Qxb2 {[%emt 0:16:41]} 13. Nxg7 {[%emt 0:00:14]} Kxg7 {[%emt 0:00:09]} 14. Nd5 {[%emt 0:02:47]} Rab8 {[%emt 0:01:01]} 15. c5 {[%emt 0:01:28]} dxc5 {[%emt 0:16:55]} 16. Bxc5 {[%emt 0:10:43]} Be6 {[%emt 0:01:54]} 17. Bc4 {[%emt 0:15:12]} Red8 {[%emt 0:03:11]} 18. Rf2 {[%emt 0:01:57]} Qe5 {[%emt 0:02:52]} 19. Rd2 {[%emt 0:00:10]} b6 {[%emt 0:02:44]} 20. Bf2 {[%emt 0:00:58]} Qg5 {[%emt 0:09:08]} 21. Bg3 {[%emt 0:10:41]} Rb7 {[%emt 0:00:28]} 22. Bf4 {[%emt 0:01:19]} Qh4 {[%emt 0:00:34]} 23. g3 {[%emt 0:00:21]} Qh5 {[%emt 0:00:46]} 24. Bb5 {[%emt 0:06:57]} Nxd5 {[%emt 0:05:26]} 25. g4 {[%emt 0:02:11]} Nc3 {[%emt 0:00:20]} 26. gxh5 {[%emt 0:00:09]} Nxd1 {[%emt 0:00:01]} 27. Rxd8 {[%emt 0:00:20]} Nf2+ {[%emt 0:00:27]} 28. Kg2 {[%emt 0:01:10]} Nxd8 {[%emt 0:00:36]} 29. h6+ {[%emt 0:00:36]} Kf6 {[%emt 0:01:21]} 30. Kxf2 {[%emt 0:00:10]} g5 {[%emt 0:00:43]} 31. Bg3 {[%emt 0:01:29]} a6 {[%emt 0:00:59]} 32. Bxa6 {[%emt 0:00:14]} Ra7 {[%emt 0:00:29]} 33. Bd3 {[%emt 0:01:22]} Kg6 {[%emt 0:00:04]} 34. a4 {[%emt 0:00:36]} Kxh6 {[%emt 0:02:15]} 35. Bb5 {[%emt 0:00:43]} Bd7 {[%emt 0:00:44]} 36. Bxd7 {[%emt 0:01:10]} Rxd7 {[%emt 0:00:03]} 37. Rb1 {[%emt 0:00:17]} Ra7 {[%emt 0:02:09]} 38. Rxb6+ {[%emt 0:00:07]} Ne6 {[%emt 0:00:06]} 39. Be5 {[%emt 0:03:09]} Ra5 {[%emt 0:01:40]} 40. Bc3 {[%emt 0:00:00]} Rxa4 {[%emt 0:00:00]} 41. Rb7 {[%emt 0:00:54]} Kg6 {[%emt 0:01:04]} 42. Rxe7 {[%emt 0:00:07]} Ra2+ {[%emt 0:00:04]} 43. Kg1 {[%emt 0:05:31]} Ra3 {[%emt 0:00:49]} 44. Bb2 {[%emt 0:03:53]} Rb3 {[%emt 0:00:28]} 45. Bh8 {[%emt 0:02:53]} Rxf3 {[%emt 0:01:03]} 46. Re8 {[%emt 0:00:16]} h5 {[%emt 0:00:24]} 47. Be5 {[%emt 0:04:31]} h4 {[%emt 0:00:35]} 48. Rg8+ {[%emt 0:04:54]} Kh5 {[%emt 0:00:05]} 49. Bd6 {[%emt 0:01:44]} Kg4 {[%emt 0:00:36]} 50. Kg2 {[%emt 0:03:04]} h3+ {[%emt 0:00:52]} 51. Kg1 {[%emt 0:00:08]} Nd4 {[%emt 0:00:06]} 0-1

[Event "FIDE WYCC Girls U14 2023"]
[Site "Montesilvano"]
[Date "2023.11.14"]
[Round "2.16"]
[White "Field, Lila Quinn"]
[Black "Huseynova, Lala"]
[Result "1/2-1/2"]
[ECO "B92"]
[WhiteElo "1616"]
[BlackElo "1867"]
[Annotator "NA"]
[PlyCount "89"]
[EventDate "2023.11.13"]
[EventType "swiss"]
[EventCountry "ITA"]
[SourceTitle "playchess.com"]
[Source "ChessBase"]
[SourceQuality "1"]
[TimeControl "40/5400+30:1800+30"]

1. e4 {[%emt 0:00:04]} c5 {[%emt 0:00:02]} 2. Nf3 {[%emt 0:00:06]} d6 {[%emt 0:00:06]} 3. d4 {[%emt 0:00:05]} cxd4 4. Nxd4 {[%emt 0:00:04]} Nf6 {[%emt 0:00:10]} 5. Nc3 {[%emt 0:00:07]} a6 {[%emt 0:00:07]} 6. Be2 {[%emt 0:00:08]} e5 {[%emt 0:00:12]} 7. Nf3 {[%emt 0:00:07]} Qc7 8. Bg5 {[%emt 0:03:51]} Nbd7 {[%emt 0:04:41]} 9. a4 {[%emt 0:02:18]} b6 {[%emt 0:00:49]} 10. Nd2 {[%emt 0:03:31]} Bb7 {[%emt 0:02:00]} 11. Bc4 {[%emt 0:03:48]} Be7 {[%emt 0:04:49]} 12. Ba2 {[%emt 0:04:37]} O-O {[%emt 0:04:16]} 13. O-O {[%emt 0:06:39]} Nc5 {[%emt 0:09:51]} 14. Bxf6 {[%emt 0:04:44]} Bxf6 {[%emt 0:00:25]} 15. Bd5 {[%emt 0:02:30]} Bg5 {[%emt 0:06:45]} 16. Nc4 {[%emt 0:05:26]} Rad8 {[%emt 0:04:54]} 17. Qg4 {[%emt 0:08:46]} h6 {[%emt 0:06:49]} 18. h4 {[%emt 0:02:52]} Bc8 {[%emt 0:00:55]} 19. Qg3 {[%emt 0:10:33]} Be7 {[%emt 0:07:58]} 20. Ne3 {[%emt 0:04:08]} Be6 {[%emt 0:17:11]} 21. Nf5 {[%emt 0:10:55]} Bxf5 {[%emt 0:01:21]} 22. exf5 {[%emt 0:00:34]} Nd7 {[%emt 0:03:31]} 23. Rfd1 {[%emt 0:07:27]} Nf6 {[%emt 0:03:53]} 24. Qd3 {[%emt 0:01:52]} Qc8 {[%emt 0:11:08]} 25. g3 {[%emt 0:03:03]} a5 {[%emt 0:04:55]} 26. Be4 {[%emt 0:02:49]} Qc5 {[%emt 0:02:23]} 27. Nd5 {[%emt 0:02:22]} Nxd5 {[%emt 0:00:31]} 28. Qxd5 {[%emt 0:00:41]} Qb4 {[%emt 0:01:36]} 29. Ra2 {[%emt 0:02:29]} Rb8 {[%emt 0:01:21]} 30. c3 {[%emt 0:01:47]} Qc5 {[%emt 0:00:06]} 31. Qb3 {[%emt 0:01:57]} Qc7 {[%emt 0:01:43]} 32. Rd5 {[%emt 0:01:25]} Rfc8 {[%emt 0:00:33]} 33. Bd3 {[%emt 0:00:25]} Qd7 {[%emt 0:00:32]} 34. Ra1 {[%emt 0:00:58]} Rd8 {[%emt 0:00:54]} 35. Re1 {[%emt 0:00:46]} Bf6 {[%emt 0:00:22]} 36. Be4 {[%emt 0:00:55]} Be7 {[%emt 0:00:41]} 37. Red1 {[%emt 0:00:41]} Qc7 {[%emt 0:00:20]} 38. Qb5 {[%emt 0:01:39]} Rdc8 {[%emt 0:00:41]} 39. Bc2 {[%emt 0:00:26]} Qc4 {[%emt 0:00:22]} 40. Qxc4 {[%emt 0:00:00]} Rxc4 {[%emt 0:00:00]} 41. Re1 {[%emt 0:04:22]} Rc5 {[%emt 0:00:59]} 42. Red1 {[%emt 0:01:45]} Kf8 {[%emt 0:01:43]} 43. Rxc5 {[%emt 0:05:04]} bxc5 {[%emt 0:00:12]} 44. b3 {[%emt 0:00:19]} Ke8 {[%emt 0:08:00]} 45. c4 {[%emt 0:01:17]} 1/2-1/2

[Event "FIDE WYCC Girls U14 2023"]
[Site "Montesilvano"]
[Date "2023.11.14"]
[Round "2.17"]
[White "Zagorac, Lara"]
[Black "Haapsal, Maria Ioanna"]
[Result "1-0"]
[ECO "A48"]
[WhiteElo "1866"]
[BlackElo "1597"]
[Annotator "NA"]
[PlyCount "103"]
[EventDate "2023.11.13"]
[EventType "swiss"]
[EventCountry "ITA"]
[SourceTitle "playchess.com"]
[Source "ChessBase"]
[SourceQuality "1"]
[TimeControl "40/5400+30:1800+30"]

1. d4 {[%emt 0:00:03]} Nf6 {[%emt 0:00:21]} 2. Nf3 {[%emt 0:00:07]} g6 {[%emt 0:00:23]} 3. c4 {[%emt 0:00:19]} Bg7 {[%emt 0:00:09]} 4. g3 {[%emt 0:00:07]} d6 {[%emt 0:00:21]} 5. Bg2 {[%emt 0:00:17]} O-O {[%emt 0:00:16]} 6. O-O {[%emt 0:00:13]} c5 {[%emt 0:02:32]} 7. dxc5 {[%emt 0:04:49]} dxc5 {[%emt 0:00:02]} 8. Ne5 {[%emt 0:04:53]} Qb6 {[%emt 0:08:53]} 9. Nc3 {[%emt 0:09:26]} Nbd7 {[%emt 0:09:07]} 10. Nd3 {[%emt 0:05:45]} Ng4 {[%emt 0:14:50]} 11. Qc2 {[%emt 0:20:03]} Rb8 {[%emt 0:23:54]} 12. Rd1 {[%emt 0:12:35]} e6 {[%emt 0:12:30]} 13. Bf4 {[%emt 0:07:50]} e5 {[%emt 0:00:48]} 14. Bg5 {[%emt 0:02:23]} f6 {[%emt 0:02:54]} 15. Bc1 {[%emt 0:01:54]} Kh8 {[%emt 0:01:46]} 16. h3 {[%emt 0:01:43]} Nh6 {[%emt 0:00:16]} 17. Be3 {[%emt 0:01:23]} Nf5 {[%emt 0:02:57]} 18. Nd5 {[%emt 0:05:08]} Nxe3 {[%emt 0:01:35]} 19. Nxe3 {[%emt 0:01:06]} f5 {[%emt 0:00:51]} 20. Nd5 {[%emt 0:00:41]} Qe6 {[%emt 0:01:25]} 21. e3 {[%emt 0:05:45]} b6 {[%emt 0:02:34]} 22. a3 {[%emt 0:01:53]} Bb7 {[%emt 0:00:27]} 23. b4 {[%emt 0:02:00]} cxb4 {[%emt 0:01:01]} 24. axb4 {[%emt 0:00:14]} a6 {[%emt 0:00:48]} 25. Nc7 {[%emt 0:02:02]} Qf7 {[%emt 0:00:30]} 26. Nxa6 {[%emt 0:01:42]} Bxa6 {[%emt 0:00:46]} 27. Rxa6 {[%emt 0:00:08]} Rfc8 {[%emt 0:01:20]} 28. Nb2 {[%emt 0:00:55]} Nf6 {[%emt 0:02:14]} 29. Qe2 {[%emt 0:01:18]} Bf8 {[%emt 0:01:02]} 30. b5 {[%emt 0:00:41]} e4 {[%emt 0:00:28]} 31. Bf1 {[%emt 0:01:38]} Rc7 {[%emt 0:00:40]} 32. Na4 {[%emt 0:00:14]} Nd7 {[%emt 0:00:46]} 33. Qd2 {[%emt 0:01:25]} Qg7 {[%emt 0:06:10]} 34. Qd4 {[%emt 0:01:44]} Ne5 {[%emt 0:00:35]} 35. Kg2 {[%emt 0:01:08]} Rd7 {[%emt 0:01:26]} 36. Qa1 {[%emt 0:00:21]} Rxd1 {[%emt 0:00:31]} 37. Qxd1 {[%emt 0:00:04]} Qc7 {[%emt 0:00:40]} 38. Qd4 {[%emt 0:01:23]} Bg7 {[%emt 0:00:01]} 39. Rxb6 {[%emt 0:02:51]} Ra8 {[%emt 0:01:18]} 40. Qc5 {[%emt 0:00:00]} Qf7 {[%emt 0:00:00]} 41. Ra6 {[%emt 0:01:37]} Rd8 {[%emt 0:04:05]} 42. b6 {[%emt 0:02:40]} Nd7 {[%emt 0:01:51]} 43. Qc7 {[%emt 0:00:37]} Qe8 {[%emt 0:00:47]} 44. Ra7 {[%emt 0:01:05]} Be5 {[%emt 0:01:04]} 45. Qc6 {[%emt 0:00:39]} f4 {[%emt 0:02:22]} 46. exf4 {[%emt 0:01:27]} Bb8 {[%emt 0:00:09]} 47. Ra5 {[%emt 0:04:19]} e3 {[%emt 0:01:40]} 48. Qf3 {[%emt 0:02:20]} exf2 {[%emt 0:01:09]} 49. c5 {[%emt 0:01:44]} Nf6 {[%emt 0:02:16]} 50. c6 {[%emt 0:01:30]} Rd6 {[%emt 0:01:45]} 51. c7 {[%emt 0:01:11]} Bxc7 {[%emt 0:00:31]} 52. bxc7 {[%emt 0:00:15]} 1-0

[Event "FIDE WYCC Girls U14 2023"]
[Site "Montesilvano"]
[Date "2023.11.14"]
[Round "2.18"]
[White "Zhang, Michelle"]
[Black "Sun, Wanyao Sarah"]
[Result "1-0"]
[ECO "B13"]
[WhiteElo "1833"]
[BlackElo "1593"]
[Annotator "NA"]
[PlyCount "95"]
[EventDate "2023.11.13"]
[EventType "swiss"]
[EventCountry "ITA"]
[SourceTitle "playchess.com"]
[Source "ChessBase"]
[SourceQuality "1"]
[TimeControl "40/5400+30:1800+30"]

1. e4 {[%emt 0:00:08]} c6 {[%emt 0:00:11]} 2. d4 {[%emt 0:00:31]} d5 {[%emt 0:00:08]} 3. exd5 {[%emt 0:00:32]} cxd5 {[%emt 0:00:07]} 4. Bd3 {[%emt 0:00:49]} Nf6 {[%emt 0:00:11]} 5. h3 {[%emt 0:01:41]} Nc6 {[%emt 0:00:57]} 6. c3 {[%emt 0:03:45]} e6 {[%emt 0:00:45]} 7. Nf3 {[%emt 0:01:09]} Be7 {[%emt 0:00:48]} 8. O-O {[%emt 0:01:01]} O-O {[%emt 0:00:22]} 9. Re1 {[%emt 0:01:06]} a6 {[%emt 0:00:47]} 10. a4 {[%emt 0:00:54]} Bd7 {[%emt 0:02:43]} 11. Qe2 {[%emt 0:13:24]} Qc7 {[%emt 0:02:56]} 12. Bg5 {[%emt 0:04:21]} h6 {[%emt 0:00:51]} 13. Bh4 {[%emt 0:01:53]} Nh5 {[%emt 0:03:44]} 14. Bxe7 {[%emt 0:12:55]} Nxe7 {[%emt 0:02:05]} 15. Bc2 {[%emt 0:05:59]} Nf4 {[%emt 0:06:10]} 16. Qe3 {[%emt 0:05:23]} f6 {[%emt 0:01:35]} 17. Na3 {[%emt 0:07:51]} Rae8 {[%emt 0:03:06]} 18. Rac1 {[%emt 0:08:00]} Nc6 {[%emt 0:04:34]} 19. Qd2 {[%emt 0:02:25]} e5 {[%emt 0:01:08]} 20. c4 {[%emt 0:08:25]} dxc4 {[%emt 0:10:10]} 21. d5 Na5 {[%emt 0:06:37]} 22. Re3 {[%emt 0:14:01]} Qb6 {[%emt 0:06:48]} 23. Rc3 {[%emt 0:03:40]} Rc8 {[%emt 0:03:53]} 24. Rd1 {[%emt 0:01:18]} Kh8 {[%emt 0:00:30]} 25. Bb1 {[%emt 0:00:46]} Bxa4 {[%emt 0:01:49]} 26. Bc2 {[%emt 0:00:33]} Bxc2 {[%emt 0:00:40]} 27. Qxc2 {[%emt 0:00:08]} Rfd8 {[%emt 0:03:40]} 28. Nxc4 {[%emt 0:00:55]} Nxc4 {[%emt 0:00:12]} 29. Rxc4 {[%emt 0:00:10]} Rxc4 {[%emt 0:00:18]} 30. Qxc4 {[%emt 0:00:07]} Qxb2 {[%emt 0:00:44]} 31. Qc7 {[%emt 0:01:25]} Ne6 {[%emt 0:01:19]} 32. Qe7 {[%emt 0:00:32]} Qb6 {[%emt 0:01:33]} 33. d6 {[%emt 0:00:23]} Nc5 {[%emt 0:01:41]} 34. Nh4 {[%emt 0:00:40]} Kh7 {[%emt 0:02:11]} 35. Nf5 {[%emt 0:00:35]} Rd7 {[%emt 0:00:36]} 36. Qe8 {[%emt 0:00:28]} Qd8 {[%emt 0:01:54]} 37. Qh5 {[%emt 0:00:20]} Ne6 {[%emt 0:06:23]} 38. h4 {[%emt 0:00:41]} Qb6 {[%emt 0:00:49]} 39. Qe8 {[%emt 0:00:28]} Nc5 {[%emt 0:02:21]} 40. h5 {[%emt 0:00:00]} Qd8 {[%emt 0:00:00]} 41. Qg6+ {[%emt 0:03:01]} Kh8 {[%emt 0:02:48]} 42. f3 {[%emt 0:15:44]} b5 {[%emt 0:01:52]} 43. Rc1 {[%emt 0:02:53]} Nd3 {[%emt 0:03:14]} 44. Rc6 {[%emt 0:04:10]} Nf4 {[%emt 0:00:36]} 45. Qg4 {[%emt 0:00:38]} a5 {[%emt 0:06:25]} 46. Ne7 {[%emt 0:01:53]} Rxe7 {[%emt 0:03:42]} 47. Rc8 {[%emt 0:00:52]} Rd7 {[%emt 0:00:47]} 48. Qxd7 {[%emt 0:00:50]} 1-0

[Event "FIDE WYCC Girls U14 2023"]
[Site "Montesilvano"]
[Date "2023.11.14"]
[Round "2.19"]
[White "Valente, Sofia"]
[Black "Sneha Halder"]
[Result "0-1"]
[ECO "A43"]
[WhiteElo "1604"]
[BlackElo "1807"]
[Annotator "NA"]
[PlyCount "58"]
[EventDate "2023.11.13"]
[EventType "swiss"]
[EventCountry "ITA"]
[SourceTitle "playchess.com"]
[Source "ChessBase"]
[SourceQuality "1"]
[TimeControl "40/5400+30:1800+30"]

1. d4 {[%emt 0:00:07]} c5 {[%emt 0:01:36]} 2. d5 {[%emt 0:01:05]} b5 {[%emt 0:01:02]} 3. e4 {[%emt 0:01:14]} a6 {[%emt 0:00:15]} 4. c4 {[%emt 0:02:18]} bxc4 {[%emt 0:01:03]} 5. Bxc4 {[%emt 0:00:34]} d6 {[%emt 0:00:30]} 6. Nc3 {[%emt 0:01:00]} Nf6 {[%emt 0:00:58]} 7. Nge2 {[%emt 0:01:59]} g6 {[%emt 0:00:59]} 8. O-O {[%emt 0:00:50]} Bg7 {[%emt 0:00:13]} 9. f4 {[%emt 0:01:42]} O-O {[%emt 0:00:15]} 10. h3 {[%emt 0:22:05]} Nbd7 {[%emt 0:02:50]} 11. Be3 {[%emt 0:07:17]} Rb8 {[%emt 0:05:10]} 12. Rb1 {[%emt 0:02:24]} Nb6 {[%emt 0:01:44]} 13. Bb3 {[%emt 0:01:32]} Ne8 {[%emt 0:01:57]} 14. f5 {[%emt 0:03:22]} Nc7 {[%emt 0:02:36]} 15. fxg6 {[%emt 0:05:20]} hxg6 {[%emt 0:08:11]} 16. Nf4 {[%emt 0:03:19]} Nb5 {[%emt 0:06:47]} 17. Nxb5 {[%emt 0:06:11]} axb5 {[%emt 0:01:05]} 18. h4 {[%emt 0:00:37]} Nc4 {[%emt 0:05:43]} 19. Bxc4 {[%emt 0:03:13]} bxc4 {[%emt 0:01:09]} 20. Qc1 {[%emt 0:02:03]} Qd7 {[%emt 0:03:43]} 21. Qxc4 {[%emt 0:03:10]} Rb4 {[%emt 0:01:53]} 22. Qc2 {[%emt 0:00:59]} Ba6 {[%emt 0:00:21]} 23. Rf3 {[%emt 0:06:14]} Rc4 {[%emt 0:01:13]} 24. Qf2 {[%emt 0:04:33]} Rxe4 {[%emt 0:02:44]} 25. Kh1 {[%emt 0:02:25]} Qg4 {[%emt 0:02:28]} 26. b3 {[%emt 0:04:35]} Bf6 {[%emt 0:02:25]} 27. Rh3 {[%emt 0:01:28]} Bd4 {[%emt 0:01:44]} 28. Rg3 {[%emt 0:03:02]} Qxh4+ {[%emt 0:01:10]} 29. Nh3 {[%emt 0:00:29]} Bxe3 {[%emt 0:00:05]} 0-1